bitfinex-derivatives/quotes_SOLF0:USTF0_20250719
["timestamp","ask_amount","ask_price","bid_price","bid_amount"]
[1752940616207,1.53813685,177.43,177.41,5.6336]
[1752940616408,1.53813685,177.43,177.42,3.26]
[1752940619508,1.53813685,177.43,177.42,8.8935]
[1752940622109,1.53813685,177.44,177.43,8.8932]
[1752940622710,1.53813685,177.46,177.43,3.26]
[1752940623317,1.53813685,177.46,177.45,8.8925]
[1752940623607,1.53813685,177.47,177.45,3.26]
[1752940624207,3.13,177.49,177.45,3.26]
[1752940624404,1.53813685,177.48,177.45,3.26]
[1752940624812,1.53813685,177.48,177.45,4.79813685]
[1752940625012,1.53813685,177.48,177.46,8.892]
[1752940625213,1.53813685,177.48,177.46,5.632]
[1752940625516,7.16973685,177.48,177.47,3.26]
[1752940625718,1.53813685,177.48,177.47,3.26]
[1752940627620,3.13,177.5,177.48,3.26]
[1752940627821,1.53813685,177.49,177.48,3.26]
[1752940628120,1.53813685,177.49,177.48,8.8916]
[1752940628721,1.53813685,177.49,177.48,3.26]
[1752940629323,7.16943685,177.49,177.48,3.26]
[1752940630622,4.66813685,177.49,177.48,3.26]
[1752940631923,1.53813685,177.49,177.48,3.26]
[1752940632822,1.53813685,177.5,177.49,3.26]
[1752940634123,1.53813685,177.5,177.49,8.8913]
[1752940635821,1.53813685,177.5,177.49,3.26]
[1752940636020,1.53813685,177.51,177.49,3.26]
[1752940636323,1.53813685,177.51,177.5,5.6308]
[1752940636921,1.53813685,177.51,177.5,8.8908]
[1752940638627,1.53813685,177.51,177.5,3.26]
[1752940639828,1.53813685,177.51,177.5,8.891]
[1752940645829,9.97090612,177.52,177.51,3.12]
[1752940646029,8.41904297,177.52,177.51,3.12]
[1752940646934,14.04934297,177.52,177.51,3.12]
[1752940647536,17.13934297,177.52,177.51,3.12]
[1752940649436,15.60120612,177.52,177.51,3.12]
[1752940649635,11.50904297,177.52,177.51,3.12]
[1752940649935,8.41904297,177.52,177.51,3.12]
[1752940652735,14.04934297,177.52,177.51,3.12]
[1752940652930,17.13934297,177.52,177.51,3.12]
[1752940653628,3.09,177.51,177.49,3.12]
[1752940653840,3.09,177.49,177.44,3.12]
[1752940654035,4.62813685,177.47,177.44,3.12]
[1752940654338,10.26003685,177.47,177.46,3.12]
[1752940654931,3.09,177.46,177.41,1.53813685]
[1752940655240,1.53813685,177.44,177.42,3.12]
[1752940655441,4.62813685,177.43,177.42,8.7533]
[1752940655742,3.09,177.42,177.4,3.12]
[1752940655934,4.62813685,177.41,177.4,3.12]
[1752940656836,4.62813685,177.41,177.4,8.7541]
[1752940657038,1.53813685,177.42,177.4,5.6341]
[1752940657238,1.53813685,177.42,177.41,3.12]
[1752940657633,4.62813685,177.42,177.41,3.12]
[1752940658544,1.53813685,177.42,177.41,8.7538]
[1752940659740,1.53813685,177.43,177.42,3.12]
[1752940659933,10.26113685,177.44,177.42,3.12]
[1752940660845,8.7226,177.45,177.43,3.12]
[1752940661036,1.53813685,177.44,177.43,3.12]
[1752940663147,4.62813685,177.44,177.43,3.12]
[1752940668447,10.26103685,177.44,177.43,3.12]
[1752940673455,7.17103685,177.44,177.43,3.12]
[1752940674844,10.45103685,177.44,177.43,3.12]
[1752940679853,1.53813685,177.44,177.43,3.12]
[1752940680462,7.17103685,177.44,177.43,3.12]
[1752940680663,10.45103685,177.44,177.43,3.12]
[1752940681763,8.9132,177.43,177.42,3.06]
[1752940681965,3.28,177.42,177.33,149.79726473]
[1752940682265,3.28,177.42,177.37,3.06]
[1752940682461,4.81813685,177.38,177.37,3.06]
[1752940683264,10.45313685,177.38,177.37,3.06]
[1752940683459,1.53813685,177.39,177.37,3.06]
[1752940683666,1.53813685,177.4,177.38,3.06]
[1752940683865,4.81813685,177.4,177.38,3.06]
[1752940684063,10.45243685,177.4,177.38,3.06]
[1752940684265,1.53813685,177.39,177.33,149.79726473]
[1752940684465,4.81813685,177.39,177.35,1.53813685]
[1752940684665,10.45253685,177.39,177.35,7.17363685]
[1752940684866,10.45253685,177.39,177.36,3.06]
[1752940685164,10.45253685,177.39,177.36,8.6953]
[1752940685365,10.45253685,177.39,177.37,3.06]
[1752940685566,3.28,177.44,177.39,3.06]
[1752940685770,4.81813685,177.45,177.42,3.06]
[1752940686468,1.53813685,177.45,177.42,3.06]
[1752940686864,5.6329,177.44,177.42,3.06]
[1752940687470,8.9129,177.44,177.42,3.06]
[1752940690676,8.9129,177.44,177.42,4.59813685]
[1752940690976,8.9129,177.44,177.43,3.06]
[1752940695485,5.6329,177.44,177.43,3.06]
[1752940695978,8.9129,177.44,177.43,3.06]
[1752940698180,5.6329,177.44,177.43,3.06]
[1752940700083,8.9129,177.44,177.43,3.06]
[1752940707593,3.28,177.44,177.43,3.06]
[1752940707794,8.7827,177.45,177.43,3.06]
[1752940707994,3.15,177.45,177.43,3.06]
[1752940708496,3.15,177.45,177.43,3.18]
[1752940708796,5.6327,177.45,177.43,3.18]
[1752940708998,1.53813685,177.47,177.43,4.71813685]
[1752940709293,3.15,177.49,177.47,3.18]
[1752940709497,4.68813685,177.51,177.47,4.71813685]
[1752940709794,5.6315,177.49,177.47,4.71813685]
[1752940709986,5.6315,177.49,177.48,3.18]
[1752940712198,8.7815,177.49,177.48,3.18]
[1752940719202,10.31963685,177.49,177.48,3.18]
[1752940719403,3.15,177.47,177.45,7.17053685]
[1752940719805,5.6318,177.48,177.45,1.53813685]
[1752940720000,5.6318,177.48,177.46,1.53813685]
[1752940720203,5.6318,177.48,177.47,3.18]
[1752940720806,8.7818,177.48,177.47,3.18]
[1752940726910,3.15,177.48,177.47,3.18]
[1752940727910,8.7816,177.48,177.47,3.18]
[1752940730014,3.15,177.48,177.47,3.18]
[1752940730812,10.17953685,177.49,177.47,3.18]
[1752940732918,5.6316,177.48,177.47,3.18]
[1752940733219,8.6416,177.48,177.47,3.18]
[1752940738320,1.53813685,177.48,177.38,4.63897929]
[1752940738526,6.88090612,177.52,177.39,3.02]
[1752940738527,1.53813685,177.43,177.39,3.02]
[1752940738925,1.53813685,177.43,177.41,8.6536]
[1752940739225,1.53813685,177.43,177.42,3.02]
[1752940739919,7.17123685,177.44,177.42,3.02]
[1752940740116,10.18123685,177.44,177.42,3.02]
[1752940740427,3.01,177.48,177.42,3.02]
[1752940740622,1.53813685,177.47,177.44,3.02]
[1752940740829,4.54813685,177.47,177.44,3.02]
[1752940741025,8.6424,177.46,177.44,3.02]
[1752940741231,116.09413393,177.52,177.43,3.02]
[1752940741232,1.53813685,177.45,177.43,3.02]
[1752940741424,3.01,177.43,177.39,3.02]
[1752940741628,10.18163685,177.42,177.39,8.6542]
[1752940741827,10.18163685,177.42,177.4,3.02]
[1752940742125,10.18213685,177.41,177.4,3.02]
[1752940744135,3.01,177.41,177.4,3.02]
[1752940744337,10.18173685,177.42,177.4,3.02]
[1752940744833,3.01,177.46,177.4,3.02]
[1752940745032,1.53813685,177.43,177.4,3.02]
[1752940745234,4.54813685,177.43,177.4,3.02]
[1752940745434,10.18153685,177.43,177.41,3.02]
[1752940747742,7.17153685,177.43,177.4,5.6339]
[1752940747943,10.18163685,177.42,177.41,3.02]
[1752940748642,10.18163685,177.42,177.39,3.02]
[1752940748643,3.01,177.4,177.39,3.02]
[1752940749342,3.01,177.39,177.36,3.02]
[1752940749544,3.01,177.38,177.36,3.02]
[1752940749740,3.01,177.38,177.36,8.6551]
[1752940749944,4.54813685,177.38,177.37,3.02]
[1752940750339,10.18293685,177.38,177.37,3.02]
[1752940750847,3.01,177.37,177.36,3.02]
[1752940751735,6.27322781,177.45,177.36,5.6354]
[1752940751736,8.6449,177.38,177.36,5.6354]
[1752940752047,8.6449,177.38,177.37,3.02]
[1752940753745,5.6342,177.4,177.37,3.02]
[1752940753946,8.6442,177.4,177.37,3.02]
[1752940754243,8.6442,177.4,177.38,3.02]
[1752940754647,5.6342,177.4,177.38,8.6547]
[1752940754840,5.6342,177.4,177.39,3.02]
[1752940755037,6.27322781,177.47,177.39,3.02]
[1752940755038,2.40325157,177.45,177.39,3.02]
[1752940755244,3.01,177.44,177.39,3.02]
[1752940755647,2.40325157,177.45,177.4,5.6339]
[1752940755843,3.01,177.43,177.41,3.02]
[1752940756245,8.6437,177.42,177.39,5.6343]
[1752940756749,5.6333,177.43,177.4,8.6541]
[1752940757052,8.6433,177.43,177.41,3.02]
[1752940757248,3.01,177.43,177.41,3.02]
[1752940757446,5.6335,177.42,177.41,3.02]
[1752940757846,8.6435,177.42,177.41,3.02]
[1752940759542,5.6332,177.43,177.41,3.02]
[1752940759747,8.6432,177.43,177.41,3.02]
[1752940760050,5.6335,177.42,177.4,5.6341]
[1752940760248,8.8335,177.42,177.4,3.01]
[1752940761747,5.6333,177.43,177.4,5.6341]
[1752940761953,5.6333,177.43,177.41,3.01]
[1752940762255,378.72,177.5,177.45,3.01]
[1752940762256,3.2,177.46,177.45,3.01]
[1752940762848,8.8323,177.46,177.45,3.01]
[1752940764350,8.8328,177.45,177.44,3.01]
[1752940768346,3.2,177.43,177.42,3.01]
[1752940769149,8.833,177.44,177.42,3.01]
[1752940770955,8.833,177.44,177.42,5.6335]
[1752940771154,2.40325157,177.46,177.43,3.01]
[1752940771370,5.60325157,177.46,177.43,3.01]
[1752940771554,3.2,177.45,177.43,3.01]
[1752940771957,8.8328,177.45,177.43,3.01]
[1752940772256,3.2,177.45,177.43,3.01]
[1752940773453,5.6328,177.44,177.43,3.01]
[1752940773650,8.8328,177.44,177.43,3.01]
[1752940774859,5.6328,177.44,177.43,3.01]
[1752940778061,8.8328,177.44,177.43,3.01]
[1752940778659,5.6328,177.44,177.43,3.01]
[1752940780162,5.6327,177.45,177.43,3.01]
[1752940780364,5.6327,177.45,177.43,8.6431]
[1752940780565,5.6327,177.45,177.44,3.01]
[1752940783565,7.16919861,177.45,177.44,3.01]
[1752940785771,5.6327,177.45,177.44,3.01]
[1752940789276,10.36889861,177.46,177.44,3.01]
[1752940789579,3.2,177.47,177.45,3.01]
[1752940789776,1.53649861,177.48,177.45,3.01]
[1752940789970,4.73649861,177.48,177.45,3.01]
[1752940790167,4.73649861,177.48,177.46,5.6322]
[1752940790475,4.73649861,177.48,177.47,3.11]
[1752940791077,10.36829861,177.48,177.47,3.11]
[1752940793681,5.6322,177.47,177.44,5.6327]
[1752940793877,3.3,177.46,177.45,3.11]
[1752940794285,10.46869861,177.46,177.45,3.11]
[1752940800082,5.6322,177.46,177.45,3.11]
[1752940801086,6.32724357,177.49,177.36,15.92097155]
[1752940801282,6.32724357,177.49,177.36,4.65057155]
[1752940801983,6.32724357,177.49,177.34,102.92]
[1752940802186,6.88090612,177.52,177.34,102.92]
[1752940803387,5.6326,177.45,177.42,5.6332]
[1752940804288,5.6326,177.45,177.43,5.6331]
[1752940804988,6.88090612,177.52,177.42,5.6334]
[1752940805188,6.88090612,177.52,177.34,114.1916]
[1752940805487,5.633,177.44,177.41,5.6335]
[1752940805787,6.88090612,177.52,177.34,11.2716]
[1752940805988,6.88090612,177.52,177.32,378.7]
[1752940805989,5.6339,177.41,177.38,5.6346]
[1752940806188,29.42690612,177.52,177.32,481.52]
[1752940806385,16.91,177.5,177.32,481.52]
[1752940806587,5.6343,177.4,177.32,481.52]
[1752940806782,6.33095566,177.45,177.32,486.18193898]
[1752940807088,5.6335,177.42,177.39,5.6342]
[1752940807288,6.33095566,177.46,177.33,4.66193898]
[1752940807488,6.33095566,177.46,177.34,102.82]
[1752940807889,6.33095566,177.46,177.33,4.66193898]
[1752940808088,6.33095566,177.45,177.32,107.48193898]
[1752940809193,6.33095566,177.45,177.32,102.82]
[1752940809392,5.634,177.41,177.38,5.6347]
[1752940809589,6.33095566,177.45,177.32,107.48193898]
[1752940809894,5.6331,177.44,177.41,5.6338]
[1752940810082,5.6331,177.44,177.34,4.66193898]
[1752940810484,5.6331,177.44,177.35,4.66193898]
[1752940810688,6.33095566,177.48,177.35,4.66193898]
[1752940811296,5.6331,177.44,177.41,5.6338]
[1752940811490,6.33095566,177.48,177.41,5.6338]
[1752940812294,5.6331,177.44,177.4,5.634]
[1752940812797,3.3,177.43,177.41,3.11]
[1752940813094,8.9333,177.43,177.41,3.11]
[1752940813994,3.3,177.41,177.37,3.11]
[1752940814397,8.9338,177.41,177.38,5.6345]
[1752940814597,3.3,177.46,177.34,3.11]
[1752940814898,5.6336,177.42,177.39,5.6343]
[1752940815093,8.9336,177.42,177.39,5.6343]
[1752940815388,8.9336,177.42,177.41,3.11]
[1752940815795,5.6336,177.42,177.41,3.11]
[1752940816297,8.9333,177.43,177.41,3.11]
[1752940817198,3.3,177.43,177.41,3.11]
[1752940817396,3.3,177.41,177.4,3.11]
[1752940817796,8.9335,177.42,177.4,3.11]
[1752940817997,8.9335,177.42,177.41,3.11]
[1752940819799,5.6335,177.42,177.41,3.11]
[1752940820898,6.33095566,177.47,177.33,4.66193898]
[1752940821104,3.25,177.42,177.35,3.27]
[1752940822004,8.8838,177.41,177.4,3.27]
[1752940824403,6.33095566,177.46,177.38,3.27]
[1752940824404,3.25,177.39,177.38,3.27]
[1752940824604,3.25,177.41,177.38,8.9045]
[1752940824806,8.884,177.41,177.39,3.27]
[1752940825002,5.634,177.41,177.39,3.27]
[1752940825205,3.25,177.42,177.39,3.27]
[1752940825506,5.6341,177.4,177.39,3.27]
[1752940825702,3.25,177.42,177.35,123.42517934]
[1752940825907,3.25,177.43,177.4,3.27]
[1752940826108,5.6337,177.42,177.4,3.27]
[1752940827407,5.6337,177.42,177.41,3.27]
[1752940828008,8.8837,177.42,177.41,3.27]
[1752940828511,5.6339,177.41,177.39,5.6343]
[1752940828706,8.8839,177.41,177.4,3.27]
[1752940830906,5.6339,177.41,177.4,3.27]
[1752940831210,3.25,177.44,177.4,3.27]
[1752940831408,3.25,177.43,177.4,3.27]
[1752940832812,2.40167424,177.45,177.37,2.40167424]
[1752940832813,8.8837,177.42,177.41,3.27]
[1752940833513,5.6337,177.42,177.41,3.27]
[1752940834710,8.8837,177.42,177.41,3.27]
[1752940834919,8.8842,177.4,177.39,3.27]
[1752940835418,3.25,177.38,177.37,3.27]
[1752940835713,3.25,177.38,177.32,5.6365]
[1752940835913,2.40167424,177.37,177.33,3.27]
[1752940836116,3.25,177.34,177.33,3.27]
[1752940836616,8.886,177.34,177.33,3.27]
[1752940837017,3.25,177.36,177.33,3.27]
[1752940837315,3.25,177.35,177.34,3.27]
[1752940837514,3.25,177.37,177.34,3.27]
[1752940837711,5.65167424,177.39,177.34,3.27]
[1752940837912,3.25,177.38,177.34,3.27]
[1752940838117,5.6354,177.37,177.27,107.44193898]
[1752940838417,3.25,177.38,177.35,3.27]
[1752940838614,3.25,177.38,177.32,2.40167424]
[1752940838814,3.25,177.39,177.36,3.27]
[1752940839121,8.8847,177.39,177.36,8.9051]
[1752940839413,3.25,177.39,177.37,3.27]
[1752940839917,3.25,177.39,177.36,5.6351]
[1752940840109,3.25,177.39,177.37,3.27]
[1752940840506,8.8848,177.38,177.35,5.6356]
[1752940841125,8.8848,177.38,177.37,3.27]
[1752940842116,2.40167424,177.39,177.35,3.27]
[1752940842326,2.40167424,177.37,177.3,3.27]
[1752940842520,3.25,177.34,177.3,3.27]
[1752940842720,3.25,177.33,177.3,3.27]
[1752940843324,3.25,177.33,177.31,5.6369]
[1752940843522,3.25,177.33,177.32,3.27]
[1752940844625,3.25,177.33,177.32,8.9067]
[1752940844825,8.8858,177.35,177.32,5.6367]
[1752940845019,8.8858,177.35,177.34,3.27]
[1752940845524,5.65167424,177.37,177.34,3.27]
[1752940845717,3.25,177.39,177.34,3.27]
[1752940845922,3.25,177.4,177.37,3.27]
[1752940846117,5.6348,177.38,177.37,3.27]
[1752940846324,8.8848,177.38,177.37,3.27]
[1752940846625,8.8846,177.39,177.37,3.27]
[1752940846926,3.25,177.43,177.39,3.27]
[1752940847218,5.6341,177.4,177.37,3.27]
[1752940847722,5.6341,177.4,177.38,3.27]
[1752940847914,5.6341,177.4,177.3,2.40167424]
[1752940847915,3.25,177.4,177.34,2.40167424]
[1752940848120,3.25,177.4,177.35,3.27]
[1752940848820,5.635,177.38,177.36,5.6354]
[1752940849015,8.885,177.38,177.37,3.27]
[1752940850622,3.25,177.38,177.37,3.27]
[1752940851727,8.9146,177.39,177.38,3.15]
[1752940852824,5.6348,177.38,177.36,8.7853]
[1752940853026,5.6348,177.38,177.37,3.15]
[1752940854530,5.6346,177.39,177.37,5.6351]
[1752940854730,8.9146,177.39,177.38,3.15]
[1752940858032,3.28,177.39,177.31,3.15]
[1752940858229,3.28,177.34,177.32,3.15]
[1752940858532,8.9165,177.33,177.32,3.15]
[1752940859932,8.9165,177.33,177.27,5.6381]
[1752940859933,5.6371,177.31,177.3,3.15]
[1752940860236,8.9171,177.31,177.3,3.15]
[1752940860733,5.6371,177.31,177.3,3.15]
[1752940861229,8.9171,177.31,177.3,3.15]
[1752940861528,5.6383,177.27,177.25,378.86]
[1752940861729,5.6383,177.27,177.24,8.04067424]
[1752940862033,3.28,177.3,177.24,2.40167424]
[1752940862332,5.6381,177.28,177.25,3.15]
[1752940863030,5.6377,177.29,177.26,3.15]
[1752940863729,3.28,177.3,177.26,8.7884]
[1752940863928,3.28,177.3,177.27,3.15]
[1752940864126,3.28,177.36,177.27,5.55167424]
[1752940864332,3.28,177.36,177.31,3.15]
[1752940864333,8.9159,177.35,177.31,3.15]
[1752940864531,3.28,177.38,177.32,3.15]
[1752940864733,3.28,177.38,177.32,5.55167424]
[1752940865036,2.40167424,177.37,177.34,3.15]
[1752940865338,2.40167424,177.37,177.33,3.15]
[1752940865339,8.9156,177.36,177.33,3.15]
[1752940865638,3.28,177.35,177.34,3.15]
[1752940865937,8.9157,177.35,177.24,3.15]
[1752940866133,2.40167424,177.35,177.31,3.15]
[1752940866338,3.28,177.32,177.31,3.15]
[1752940866838,8.916,177.34,177.31,3.15]
[1752940867135,8.916,177.34,177.32,3.15]
[1752940867433,5.6363,177.33,177.3,5.6371]
[1752940867737,3.28,177.32,177.31,3.15]
[1752940868239,3.28,177.32,177.31,8.787]
[1752940868536,5.6361,177.34,177.31,8.787]
[1752940868835,3.28,177.33,177.32,3.15]
[1752940869838,5.6361,177.34,177.31,5.637]
[1752940870026,3.28,177.33,177.32,3.15]
[1752940870438,8.9163,177.33,177.32,3.15]
[1752940871039,5.6363,177.33,177.3,5.6372]
[1752940871239,3.28,177.32,177.31,3.15]
[1752940872838,8.9167,177.32,177.31,3.15]
[1752940873235,3.28,177.31,177.3,3.15]
[1752940874143,5.68167424,177.31,177.24,3.15]
[1752940874335,3.28,177.3,177.24,3.15]
[1752940874737,8.9174,177.3,177.27,5.6382]
[1752940874933,8.9174,177.3,177.24,3.15]
[1752940874934,3.28,177.29,177.28,3.15]
[1752940875138,5.6374,177.3,177.28,3.15]
[1752940875341,3.28,177.3,177.29,3.15]
[1752940876142,8.9173,177.3,177.29,3.15]
[1752940876540,3.28,177.3,177.29,3.15]
[1752940877139,3.28,177.33,177.29,3.15]
[1752940877539,3.28,177.33,177.32,3.15]
[1752940877739,2.40167424,177.34,177.31,5.6369]
[1752940877937,5.68167424,177.34,177.33,3.15]
[1752940878140,5.6364,177.33,177.31,5.6369]
[1752940878347,8.9164,177.33,177.32,3.15]
[1752940882145,8.03787424,177.34,177.32,8.7867]
[1752940882349,5.70167424,177.34,177.33,3.11]
[1752940882747,126.01525566,177.4,177.33,3.11]
[1752940882748,5.6359,177.35,177.33,8.7463]
[1752940882947,8.9359,177.35,177.34,3.11]
[1752940884353,8.9354,177.36,177.34,3.11]
[1752940884947,2.40167424,177.39,177.34,3.11]
[1752940885147,3.3,177.37,177.34,3.11]
[1752940885651,8.9352,177.37,177.35,3.11]
[1752940885852,8.9352,177.37,177.36,3.11]
[1752940886454,8.9356,177.36,177.35,3.11]
[1752940887353,8.9356,177.36,177.26,2.40167424]
[1752940887354,3.3,177.36,177.26,2.40167424]
[1752940887652,3.3,177.32,177.27,3.11]
[1752940888056,5.70167424,177.35,177.27,3.11]
[1752940888449,2.40167424,177.35,177.28,3.11]
[1752940888759,5.6358,177.35,177.33,3.11]
[1752940889456,5.6358,177.35,177.34,3.11]
[1752940889755,5.6355,177.36,177.34,3.11]
[1752940890049,3.3,177.39,177.33,2.40167424]
[1752940890251,5.6346,177.39,177.34,3.11]
[1752940890654,5.6346,177.39,177.36,5.6351]
[1752940890847,5.6342,177.4,177.35,3.11]
[1752940891048,8.9342,177.4,177.35,3.11]
[1752940891254,5.6342,177.4,177.35,3.11]
[1752940891749,5.6342,177.4,177.37,5.6349]
[1752940891954,5.6342,177.4,177.38,3.11]
[1752940893552,8.9339,177.41,177.38,5.6347]
[1752940893754,8.9339,177.41,177.4,3.11]
[1752940894949,8.9339,177.41,177.37,5.6349]
[1752940894950,3.3,177.39,177.38,3.11]
[1752940895646,8.9344,177.39,177.38,3.11]
[1752940896853,3.3,177.39,177.38,3.11]
[1752940897946,3.3,177.39,177.36,3.11]
[1752940898150,3.3,177.37,177.35,3.11]
[1752940898455,3.3,177.36,177.35,3.11]
[1752940900157,8.03657424,177.38,177.36,3.11]
[1752940900356,5.70167424,177.39,177.36,3.11]
[1752940900651,5.70167424,177.41,177.36,3.11]
[1752940900857,5.6342,177.4,177.38,3.11]
[1752940901458,5.6342,177.4,177.39,3.11]
[1752940903573,11.33557424,177.41,177.4,3.11]
[1752940903867,3.3,177.4,177.28,4.66629421]
[1752940904059,3.3,177.36,177.3,3.11]
[1752940904465,8.9356,177.36,177.33,5.6361]
[1752940904665,3.3,177.35,177.34,3.11]
[1752940905170,3.3,177.34,177.33,3.11]
[1752940905573,5.70167424,177.35,177.34,3.11]
[1752940906073,11.33747424,177.35,177.34,3.11]
[1752940908171,3.3,177.34,177.28,3.11]
[1752940908371,2.40167424,177.33,177.29,5.6374]
[1752940908570,3.3,177.31,177.3,3.11]
[1752940909075,8.9368,177.32,177.31,3.11]
[1752940909276,5.70167424,177.34,177.27,3.11]
[1752940909675,3.3,177.32,177.3,3.11]
[1752940910068,3.3,177.33,177.3,3.11]
[1752940910273,8.9364,177.33,177.3,8.7472]
[1752940910577,8.9364,177.33,177.32,3.24]
[1752940910775,3.3,177.32,177.31,3.24]
[1752940911275,8.9365,177.33,177.32,3.24]
[1752940912072,5.6367,177.32,177.3,3.24]
[1752940912278,3.3,177.33,177.31,3.24]
[1752940912579,8.9364,177.33,177.32,3.24]
[1752940912881,2.40167424,177.34,177.27,3.24]
[1752940913180,2.40167424,177.34,177.27,5.64167424]
[1752940913380,2.40167424,177.34,177.28,3.24]
[1752940913577,5.70167424,177.37,177.28,3.24]
[1752940914182,5.6356,177.36,177.33,5.6362]
[1752940914482,5.6356,177.36,177.34,3.24]
[1752940914681,2.40167424,177.37,177.34,3.24]
[1752940914881,8.03687424,177.37,177.34,8.8758]
[1752940915079,8.03687424,177.37,177.35,3.24]
[1752940915780,8.03687424,177.37,177.35,8.8757]
[1752940915976,8.03687424,177.37,177.36,3.24]
[1752940916184,8.03687424,177.37,177.25,4.67295661]
[1752940916185,5.70167424,177.4,177.37,3.24]
[1752940916380,5.70167424,177.4,177.33,2.40167424]
[1752940916381,3.3,177.4,177.39,3.24]
[1752940918581,8.9341,177.4,177.39,3.24]
[1752940918784,8.9341,177.4,177.28,11.2756]
[1752940918785,3.3,177.39,177.28,5.64167424]
[1752940919082,3.3,177.33,177.29,3.24]
[1752940919284,3.3,177.33,177.31,8.8767]
[1752940919482,3.3,177.33,177.32,3.24]
[1752940919878,8.03757424,177.35,177.31,5.6367]
[1752940920185,11.33757424,177.35,177.31,5.6367]
[1752940920481,11.33757424,177.35,177.34,3.24]
[1752940920681,8.03757424,177.35,177.23,15.95175661]
[1752940920878,3.3,177.38,177.26,2.40167424]
[1752940921082,2.40167424,177.35,177.34,3.24]
[1752940921578,2.40167424,177.35,177.23,4.67295661]
[1752940921579,5.70167424,177.37,177.35,3.24]
[1752940922085,11.33677424,177.37,177.34,3.24]
[1752940922278,2.40167424,177.37,177.34,3.24]
[1752940922678,5.6348,177.38,177.35,3.24]
[1752940922884,8.9348,177.38,177.35,3.24]
[1752940923583,2.40167424,177.39,177.36,3.24]
[1752940923885,2.40167424,177.39,177.35,5.6357]
[1752940924084,3.3,177.37,177.29,2.40167424]
[1752940924385,11.33677424,177.37,177.3,3.24]
[1752940924581,5.70167424,177.35,177.33,3.24]
[1752940924782,2.40167424,177.35,177.33,3.24]
[1752940925082,3.3,177.34,177.33,3.24]
[1752940926185,3.3,177.34,177.31,5.6368]
[1752940926383,3.3,177.34,177.32,3.24]
[1752940926586,5.70167424,177.35,177.33,3.24]
[1752940926787,5.70167424,177.35,177.34,3.24]
[1752940927289,3.3,177.33,177.32,3.24]
[1752940927686,3.3,177.34,177.33,3.24]
[1752940929284,3.3,177.34,177.26,2.40167424]
[1752940929285,3.3,177.34,177.3,5.6371]
[1752940929589,3.3,177.33,177.32,3.24]
[1752940930887,3.3,177.34,177.28,3.24]
[1752940931091,3.3,177.3,177.26,3.24]
[1752940931283,3.3,177.32,177.28,5.6375]
[1752940931585,3.3,177.31,177.3,3.24]
[1752940931789,3.3,177.33,177.3,3.24]
[1752940932481,3.3,177.32,177.29,3.24]
[1752940932981,8.03787424,177.33,177.29,5.6372]
[1752940933189,5.70167424,177.33,177.3,3.24]
[1752940933890,3.3,177.3,177.29,3.24]